[Event "December 5 Early 2023"]
[Site "https://www.chess.com"]
[Date "2023.12.05"]
[Round "4"]
[White "Durarbayli, Vasif"]
[Black "BestStelker"]
[Result "1-0"]
[Board "13"]
[TimeControl "180+1"]
[WhiteFideId "13402935"]
[WhiteElo "2981"]
[BlackElo "2824"]
[WhiteTeam "AZE"]
[WhiteClock "0:01:06"]
[BlackClock "0:00:03"]

1. e4 {[%clk 0:03:00]}  c5 {[%clk 0:03:00]} 2. Nf3 {[%clk 0:03:00]}  e6 {[%clk 0:03:00]} 3. d4 {[%clk 0:03:00]}  cxd4 {[%clk 0:03:01]} 4. Nxd4 {[%clk 0:03:00]}  a6 {[%clk 0:03:02]} 5. c4 {[%clk 0:02:59]}  Nf6 {[%clk 0:03:01]} 6. Nc3 {[%clk 0:02:59]}  Qc7 {[%clk 0:03:02]} 7. Be3 {[%clk 0:02:55]}  b6 {[%clk 0:02:59]} 8. Be2 {[%clk 0:02:53]}  Bb7 {[%clk 0:02:58]} 9. Qc2 {[%clk 0:02:51]}  d6 {[%clk 0:02:45]} 10. g4 {[%clk 0:02:46]}  h6 {[%clk 0:02:37]} 11. h4 {[%clk 0:02:45]}  Nc6 {[%clk 0:02:24]} 12. Nxc6 {[%clk 0:02:34]}  Bxc6 {[%clk 0:02:19]} 13. O-O-O {[%clk 0:02:32]}  Qb7 {[%clk 0:02:08]} 14. f3 {[%clk 0:02:25]}  Nd7 {[%clk 0:01:59]} 15. Kb1 {[%clk 0:02:13]}  b5 {[%clk 0:01:50]} 16. Bf4 {[%clk 0:02:03]}  Ne5 {[%clk 0:01:23]} 17. c5 {[%clk 0:01:59]}  b4 {[%clk 0:01:16]} 18. Na4 {[%clk 0:01:41]}  Rc8 {[%clk 0:00:32]} 19. Nb6 {[%clk 0:01:31]}  Rd8 {[%clk 0:00:31]} 20. Bxe5 {[%clk 0:01:15]}  dxe5 {[%clk 0:00:32]} 21. Rxd8+ {[%clk 0:01:15]}  Kxd8 {[%clk 0:00:32]} 22. Qd2+ {[%clk 0:01:16]}  Kc7 {[%clk 0:00:26]} 23. Qxb4 {[%clk 0:01:16]}  Be7 {[%clk 0:00:11]} 24. Qa5 {[%clk 0:01:14]}  Bxe4+ {[%clk 0:00:03]} 25. Ka1 {[%clk 0:01:06]}  Kb8 {[%clk 0:00:03]} 1-0

[Event "December 5 Early 2023"]
[Site "https://www.chess.com"]
[Date "2023.12.05"]
[Round "4"]
[White "Nguyen, Quoc Hy"]
[Black "Navara, David"]
[Result "1/2-1/2"]
[Board "14"]
[TimeControl "180+1"]
[WhiteFideId "12410853"]
[BlackFideId "309095"]
[WhiteElo "2814"]
[BlackElo "2975"]
[WhiteTeam "VIE"]
[BlackTeam "CZE"]
[WhiteClock "0:00:20"]
[BlackClock "0:00:08"]

1. d4 {[%clk 0:03:00]}  d5 {[%clk 0:02:59]} 2. Nf3 {[%clk 0:02:59]}  Nf6 {[%clk 0:03:00]} 3. Bf4 {[%clk 0:02:58]}  c5 {[%clk 0:03:00]} 4. e3 {[%clk 0:02:57]}  Nc6 {[%clk 0:03:00]} 5. c3 {[%clk 0:02:57]}  Qb6 {[%clk 0:02:49]} 6. Qc2 {[%clk 0:02:57]}  Nh5 {[%clk 0:02:42]} 7. Be5 {[%clk 0:02:42]}  f6 {[%clk 0:02:42]} 8. Bg3 {[%clk 0:02:42]}  e5 {[%clk 0:02:34]} 9. dxe5 {[%clk 0:02:38]}  Nxg3 {[%clk 0:02:33]} 10. hxg3 {[%clk 0:02:37]}  fxe5 {[%clk 0:02:21]} 11. Ng5 {[%clk 0:02:31]}  Bd7 {[%clk 0:01:17]} 12. Rxh7 {[%clk 0:02:29]}  Rxh7 {[%clk 0:01:17]} 13. Nxh7 {[%clk 0:02:30]}  O-O-O {[%clk 0:01:15]} 14. Nxf8 {[%clk 0:02:30]}  Rxf8 {[%clk 0:01:15]} 15. Na3 {[%clk 0:02:24]}  Bg4 {[%clk 0:01:02]} 16. f3 {[%clk 0:02:22]}  c4 {[%clk 0:00:51]} 17. Qd2 {[%clk 0:02:13]}  Be6 {[%clk 0:00:48]} 18. O-O-O {[%clk 0:02:11]}  Qc5 {[%clk 0:00:46]} 19. Be2 {[%clk 0:02:00]}  Rd8 {[%clk 0:00:45]} 20. Nc2 {[%clk 0:01:57]}  Bf5 {[%clk 0:00:45]} 21. e4 {[%clk 0:01:22]}  dxe4 {[%clk 0:00:46]} 22. Qg5 {[%clk 0:01:17]}  Rxd1+ {[%clk 0:00:44]} 23. Bxd1 {[%clk 0:01:16]}  Qf8 {[%clk 0:00:42]} 24. Ne3 {[%clk 0:01:03]}  Be6 {[%clk 0:00:42]} 25. fxe4 {[%clk 0:01:02]}  Kb8 {[%clk 0:00:37]} 26. Nd5 {[%clk 0:01:00]}  a6 {[%clk 0:00:34]} 27. Bf3 {[%clk 0:00:59]}  Qc5 {[%clk 0:00:33]} 28. Qe3 {[%clk 0:00:59]}  Qxe3+ {[%clk 0:00:32]} 29. Nxe3 {[%clk 0:01:00]}  Kc7 {[%clk 0:00:33]} 30. Bg4 {[%clk 0:00:57]}  Bxg4 {[%clk 0:00:30]} 31. Nxg4 {[%clk 0:00:58]}  b5 {[%clk 0:00:31]} 32. Kd2 {[%clk 0:00:58]}  Kd6 {[%clk 0:00:31]} 33. Ne3 {[%clk 0:00:58]}  g6 {[%clk 0:00:29]} 34. Nd5 {[%clk 0:00:58]}  Nd8 {[%clk 0:00:25]} 35. Ke3 {[%clk 0:00:58]}  Ne6 {[%clk 0:00:24]} 36. Nb4 {[%clk 0:00:57]}  Nc5 {[%clk 0:00:24]} 37. Nd5 {[%clk 0:00:54]}  a5 {[%clk 0:00:18]} 38. Nf6 {[%clk 0:00:53]}  Na4 {[%clk 0:00:17]} 39. Nh7 {[%clk 0:00:36]}  Nxb2 {[%clk 0:00:17]} 40. Nf8 {[%clk 0:00:37]}  Na4 {[%clk 0:00:17]} 41. Kd2 {[%clk 0:00:36]}  Nc5 {[%clk 0:00:17]} 42. Ke3 {[%clk 0:00:35]}  Na4 {[%clk 0:00:15]} 43. Kd2 {[%clk 0:00:35]}  Nc5 {[%clk 0:00:15]} 44. Ke3 {[%clk 0:00:36]}  b4 {[%clk 0:00:16]} 45. cxb4 {[%clk 0:00:36]}  axb4 {[%clk 0:00:16]} 46. Nxg6 {[%clk 0:00:35]}  b3 {[%clk 0:00:16]} 47. axb3 {[%clk 0:00:34]}  cxb3 {[%clk 0:00:17]} 48. Kd2 {[%clk 0:00:34]}  Nxe4+ {[%clk 0:00:17]} 49. Kc1 {[%clk 0:00:35]}  Kd5 {[%clk 0:00:16]} 50. Kb2 {[%clk 0:00:34]}  Nc5 {[%clk 0:00:17]} 51. g4 {[%clk 0:00:34]}  e4 {[%clk 0:00:15]} 52. g5 {[%clk 0:00:32]}  e3 {[%clk 0:00:12]} 53. Nf4+ {[%clk 0:00:32]}  Ke4 {[%clk 0:00:12]} 54. g6 {[%clk 0:00:20]}  Kxf4 {[%clk 0:00:12]} 55. g7 {[%clk 0:00:21]}  e2 {[%clk 0:00:12]} 56. g8=Q {[%clk 0:00:21]}  e1=Q {[%clk 0:00:13]} 57. Qf8+ {[%clk 0:00:19]}  Kg3 {[%clk 0:00:07]} 58. Qxc5 {[%clk 0:00:19]}  Qf2+ {[%clk 0:00:07]} 59. Qxf2+ {[%clk 0:00:19]}  Kxf2 {[%clk 0:00:08]} 60. Kxb3 {[%clk 0:00:20]}  Kxg2 {[%clk 0:00:08]} 1/2-1/2

[Event "December 5 Early 2023"]
[Site "https://www.chess.com"]
[Date "2023.12.05"]
[Round "4"]
[White "Samunenkov, Ihor"]
[Black "Yilmaz, Mustafa"]
[Result "0-1"]
[Board "16"]
[TimeControl "180+1"]
[WhiteFideId "14187086"]
[BlackFideId "6302718"]
[WhiteElo "2775"]
[BlackElo "2948"]
[WhiteTeam "UKR"]
[BlackTeam "TUR"]
[WhiteClock "0:00:00"]
[BlackClock "0:00:23"]

1. d4 {[%clk 0:03:00]}  Nf6 {[%clk 0:02:50]} 2. Nc3 {[%clk 0:03:00]}  d5 {[%clk 0:02:45]} 3. Bf4 {[%clk 0:03:00]}  g6 {[%clk 0:02:39]} 4. e3 {[%clk 0:02:58]}  Bg7 {[%clk 0:02:37]} 5. h4 {[%clk 0:02:59]}  h5 {[%clk 0:02:36]} 6. Nf3 {[%clk 0:02:53]}  O-O {[%clk 0:02:35]} 7. Ne5 {[%clk 0:02:45]}  c5 {[%clk 0:02:34]} 8. Qd2 {[%clk 0:02:45]}  Nc6 {[%clk 0:02:32]} 9. O-O-O {[%clk 0:02:43]}  cxd4 {[%clk 0:02:29]} 10. exd4 {[%clk 0:02:43]}  Qa5 {[%clk 0:02:25]} 11. Kb1 {[%clk 0:02:28]}  Bf5 {[%clk 0:02:25]} 12. Nxc6 {[%clk 0:01:31]}  bxc6 {[%clk 0:02:24]} 13. f3 {[%clk 0:01:28]}  c5 {[%clk 0:02:04]} 14. dxc5 {[%clk 0:00:53]}  Rab8 {[%clk 0:02:04]} 15. Bxb8 {[%clk 0:00:43]}  Rxb8 {[%clk 0:02:03]} 16. Nb5 {[%clk 0:00:33]}  Rxb5 {[%clk 0:01:52]} 17. Bxb5 {[%clk 0:00:34]}  Qxb5 {[%clk 0:01:52]} 18. Qc3 {[%clk 0:00:34]}  Nd7 {[%clk 0:01:21]} 19. Qb3 {[%clk 0:00:18]}  Qxc5 {[%clk 0:01:21]} 20. Rxd5 {[%clk 0:00:11]}  Bxc2+ {[%clk 0:01:20]} 21. Qxc2 {[%clk 0:00:12]}  Qxd5 {[%clk 0:01:20]} 22. Rd1 {[%clk 0:00:11]}  Qb7 {[%clk 0:01:19]} 23. Qb3 {[%clk 0:00:12]}  Nb6 {[%clk 0:00:26]} 24. Rd8+ {[%clk 0:00:07]}  Kh7 {[%clk 0:00:26]} 25. Qxf7 {[%clk 0:00:04]}  Nd5 {[%clk 0:00:26]} 26. b3 {[%clk 0:00:03]}  Nc3+ {[%clk 0:00:27]} 27. Kc2 {[%clk 0:00:03]}  Qa6 {[%clk 0:00:23]} 28. Qg8+ {[%clk 0:00:00]}  Kh6 {[%clk 0:00:23]} 0-1

[Event "December 5 Early 2023"]
[Site "https://www.chess.com"]
[Date "2023.12.05"]
[Round "4"]
[White "Volkov, Maksim"]
[Black "Rasulov, Vugar"]
[Result "1-0"]
[Board "19"]
[TimeControl "180+1"]
[WhiteFideId "54123070"]
[BlackFideId "13402390"]
[WhiteElo "2694"]
[BlackElo "2923"]
[WhiteTeam "RUS"]
[BlackTeam "AZE"]
[WhiteClock "0:00:11"]
[BlackClock "0:00:05"]

1. d4 {[%clk 0:03:00]}  Nf6 {[%clk 0:02:59]} 2. c4 {[%clk 0:03:01]}  e6 {[%clk 0:03:00]} 3. g3 {[%clk 0:03:01]}  c5 {[%clk 0:03:00]} 4. d5 {[%clk 0:03:01]}  exd5 {[%clk 0:03:01]} 5. cxd5 {[%clk 0:03:02]}  d6 {[%clk 0:03:02]} 6. Nc3 {[%clk 0:03:03]}  g6 {[%clk 0:03:02]} 7. Bg2 {[%clk 0:03:03]}  Bg7 {[%clk 0:03:03]} 8. Nf3 {[%clk 0:03:04]}  O-O {[%clk 0:03:04]} 9. O-O {[%clk 0:03:05]}  Re8 {[%clk 0:03:03]} 10. Bf4 {[%clk 0:03:06]}  h6 {[%clk 0:02:58]} 11. Re1 {[%clk 0:03:01]}  g5 {[%clk 0:02:57]} 12. Bd2 {[%clk 0:03:01]}  Bf5 {[%clk 0:02:57]} 13. h4 {[%clk 0:03:01]}  g4 {[%clk 0:02:56]} 14. Nh2 {[%clk 0:03:02]}  Bg6 {[%clk 0:02:51]} 15. Nf1 {[%clk 0:03:00]}  Nbd7 {[%clk 0:02:51]} 16. Bf4 {[%clk 0:02:50]}  Ne5 {[%clk 0:02:49]} 17. Qc1 {[%clk 0:02:39]}  Kh7 {[%clk 0:02:46]} 18. Ne3 {[%clk 0:02:39]}  a6 {[%clk 0:02:41]} 19. a4 {[%clk 0:02:38]}  Rb8 {[%clk 0:02:38]} 20. a5 {[%clk 0:02:30]}  h5 {[%clk 0:02:36]} 21. Bg5 {[%clk 0:01:58]}  b5 {[%clk 0:02:26]} 22. axb6 {[%clk 0:01:58]}  Qxb6 {[%clk 0:02:27]} 23. Ra2 {[%clk 0:01:58]}  Nfd7 {[%clk 0:02:18]} 24. Be4 {[%clk 0:01:41]}  c4 {[%clk 0:02:13]} 25. Nf5 {[%clk 0:01:31]}  Nc5 {[%clk 0:01:48]} 26. Nxg7 {[%clk 0:01:14]}  Kxg7 {[%clk 0:01:46]} 27. Bxg6 {[%clk 0:01:04]}  fxg6 {[%clk 0:01:47]} 28. Be3 {[%clk 0:00:59]}  Qc7 {[%clk 0:01:16]} 29. Kg2 {[%clk 0:00:56]}  a5 {[%clk 0:01:12]} 30. Qd2 {[%clk 0:00:45]}  Nb3 {[%clk 0:00:59]} 31. Qc2 {[%clk 0:00:44]}  Nf7 {[%clk 0:00:55]} 32. Bf4 {[%clk 0:00:40]}  Qc5 {[%clk 0:00:51]} 33. Rd1 {[%clk 0:00:38]}  Re7 {[%clk 0:00:38]} 34. Ne4 {[%clk 0:00:36]}  Qb4 {[%clk 0:00:35]} 35. Nc3 {[%clk 0:00:20]}  Rbe8 {[%clk 0:00:35]} 36. Ra4 {[%clk 0:00:19]}  Qc5 {[%clk 0:00:35]} 37. Be3 {[%clk 0:00:14]}  Rxe3 {[%clk 0:00:34]} 38. fxe3 {[%clk 0:00:15]}  Qxe3 {[%clk 0:00:18]} 39. Rxc4 {[%clk 0:00:14]}  Nc5 {[%clk 0:00:19]} 40. Rf4 {[%clk 0:00:12]}  Ne5 {[%clk 0:00:16]} 41. Rdf1 {[%clk 0:00:13]}  Re7 {[%clk 0:00:15]} 42. Ne4 {[%clk 0:00:10]}  Qb3 {[%clk 0:00:10]} 43. Qxb3 {[%clk 0:00:06]}  Nxb3 {[%clk 0:00:11]} 44. Nxd6 {[%clk 0:00:07]}  Rd7 {[%clk 0:00:09]} 45. Ne8+ {[%clk 0:00:06]}  Kh6 {[%clk 0:00:09]} 46. Nf6 {[%clk 0:00:07]}  Rd6 {[%clk 0:00:08]} 47. e4 {[%clk 0:00:07]}  Nd2 {[%clk 0:00:08]} 48. Rd1 {[%clk 0:00:07]}  Ndc4 {[%clk 0:00:08]} 49. Kg1 {[%clk 0:00:07]}  Nxb2 {[%clk 0:00:08]} 50. Rb1 {[%clk 0:00:07]}  Ned3 {[%clk 0:00:06]} 51. Rff1 {[%clk 0:00:06]}  a4 {[%clk 0:00:06]} 52. e5 {[%clk 0:00:05]}  Rd8 {[%clk 0:00:03]} 53. e6 {[%clk 0:00:06]}  a3 {[%clk 0:00:04]} 54. e7 {[%clk 0:00:07]}  Ra8 {[%clk 0:00:04]} 55. e8=Q {[%clk 0:00:06]}  Rxe8 {[%clk 0:00:05]} 56. Nxe8 {[%clk 0:00:07]}  Ne5 {[%clk 0:00:04]} 57. d6 {[%clk 0:00:07]}  g5 {[%clk 0:00:03]} 58. Nf6 {[%clk 0:00:06]}  gxh4 {[%clk 0:00:04]} 59. gxh4 {[%clk 0:00:07]}  Kg6 {[%clk 0:00:03]} 60. d7 {[%clk 0:00:07]}  Nc6 {[%clk 0:00:04]} 61. Nd5 {[%clk 0:00:05]}  Nd8 {[%clk 0:00:03]} 62. Ra1 {[%clk 0:00:06]}  Nc4 {[%clk 0:00:03]} 63. Rfc1 {[%clk 0:00:06]}  Ne5 {[%clk 0:00:03]} 64. Nb6 {[%clk 0:00:06]}  Nf3+ {[%clk 0:00:02]} 65. Kf2 {[%clk 0:00:07]}  Nxh4 {[%clk 0:00:03]} 66. Rxa3 {[%clk 0:00:07]}  Nf5 {[%clk 0:00:03]} 67. Ra8 {[%clk 0:00:07]}  Ne6 {[%clk 0:00:04]} 68. d8=Q {[%clk 0:00:08]}  Nxd8 {[%clk 0:00:04]} 69. Rxd8 {[%clk 0:00:09]}  h4 {[%clk 0:00:05]} 70. Rc6+ {[%clk 0:00:09]}  Kg5 {[%clk 0:00:06]} 71. Rg8+ {[%clk 0:00:10]}  Kf4 {[%clk 0:00:06]} 72. Rc4+ {[%clk 0:00:10]}  Ke5 {[%clk 0:00:05]} 73. Rcxg4 {[%clk 0:00:11]} 1-0

[Event "December 5 Early 2023"]
[Site "https://www.chess.com"]
[Date "2023.12.05"]
[Round "4"]
[White "Krysa, Leandro"]
[Black "Henriquez Villagra, Cristobal"]
[Result "0-1"]
[Board "29"]
[TimeControl "180+1"]
[WhiteFideId "116807"]
[BlackFideId "3409350"]
[WhiteElo "2720"]
[BlackElo "2955"]
[WhiteTeam "ARG"]
[BlackTeam "CHI"]
[WhiteClock "0:00:03"]
[BlackClock "0:00:12"]

1. e4 {[%clk 0:03:00]}  d6 {[%clk 0:03:00]} 2. d4 {[%clk 0:02:59]}  Nf6 {[%clk 0:03:00]} 3. Nc3 {[%clk 0:02:59]}  e5 {[%clk 0:03:01]} 4. Nf3 {[%clk 0:02:59]}  Nbd7 {[%clk 0:03:02]} 5. Bc4 {[%clk 0:02:58]}  Be7 {[%clk 0:03:03]} 6. O-O {[%clk 0:02:58]}  O-O {[%clk 0:03:03]} 7. a4 {[%clk 0:02:58]}  c6 {[%clk 0:03:04]} 8. Ba2 {[%clk 0:02:58]}  h6 {[%clk 0:03:03]} 9. Re1 {[%clk 0:02:58]}  Re8 {[%clk 0:03:03]} 10. h3 {[%clk 0:02:54]}  Bf8 {[%clk 0:03:02]} 11. Be3 {[%clk 0:02:52]}  Qc7 {[%clk 0:02:41]} 12. dxe5 {[%clk 0:02:39]}  dxe5 {[%clk 0:02:39]} 13. Nh4 {[%clk 0:02:36]}  Nc5 {[%clk 0:02:15]} 14. Qf3 {[%clk 0:02:31]}  Nh7 {[%clk 0:02:12]} 15. Nf5 {[%clk 0:02:12]}  Kh8 {[%clk 0:02:12]} 16. Rad1 {[%clk 0:02:03]}  Ne6 {[%clk 0:02:11]} 17. h4 {[%clk 0:01:55]}  h5 {[%clk 0:01:54]} 18. Qxh5 {[%clk 0:01:37]}  g6 {[%clk 0:01:51]} 19. Qf3 {[%clk 0:01:38]}  gxf5 {[%clk 0:01:44]} 20. exf5 {[%clk 0:01:38]}  Ng7 {[%clk 0:01:44]} 21. f6 {[%clk 0:01:36]}  Nf5 {[%clk 0:01:42]} 22. Bg5 {[%clk 0:01:28]}  Bb4 {[%clk 0:01:32]} 23. Qh5 {[%clk 0:01:23]}  Be6 {[%clk 0:01:25]} 24. Bxe6 {[%clk 0:01:14]}  Rxe6 {[%clk 0:01:26]} 25. Rd3 {[%clk 0:00:51]}  Bxc3 {[%clk 0:01:17]} 26. Rxc3 {[%clk 0:00:51]}  e4 {[%clk 0:01:16]} 27. Rc5 {[%clk 0:00:44]}  Nd6 {[%clk 0:00:49]} 28. Rd1 {[%clk 0:00:28]}  Rg8 {[%clk 0:00:44]} 29. Rc3 {[%clk 0:00:23]}  Qa5 {[%clk 0:00:42]} 30. Rg3 {[%clk 0:00:19]}  Qf5 {[%clk 0:00:38]} 31. Kh2 {[%clk 0:00:13]}  Qg6 {[%clk 0:00:34]} 32. Qxg6 {[%clk 0:00:07]}  Rxg6 {[%clk 0:00:34]} 33. Bf4 {[%clk 0:00:07]}  Rxg3 {[%clk 0:00:33]} 34. Bxg3 {[%clk 0:00:06]}  Ne8 {[%clk 0:00:28]} 35. Rd7 {[%clk 0:00:06]}  Kg8 {[%clk 0:00:19]} 36. Rxb7 {[%clk 0:00:06]}  a6 {[%clk 0:00:20]} 37. Rb6 {[%clk 0:00:06]}  c5 {[%clk 0:00:19]} 38. Rb7 {[%clk 0:00:05]}  Nhxf6 {[%clk 0:00:18]} 39. Rc7 {[%clk 0:00:05]}  e3 {[%clk 0:00:02]} 40. fxe3 {[%clk 0:00:05]}  Rxe3 {[%clk 0:00:02]} 41. Bf4 {[%clk 0:00:04]}  Re4 {[%clk 0:00:02]} 42. Bg5 {[%clk 0:00:04]}  Rxa4 {[%clk 0:00:02]} 43. Rxc5 {[%clk 0:00:03]}  Kg7 {[%clk 0:00:03]} 44. Rc8 {[%clk 0:00:03]}  Re4 {[%clk 0:00:03]} 45. c3 {[%clk 0:00:03]}  Re6 {[%clk 0:00:04]} 46. Rb8 {[%clk 0:00:02]}  Nd6 {[%clk 0:00:05]} 47. Rb6 {[%clk 0:00:02]}  Nde4 {[%clk 0:00:06]} 48. Bxf6+ {[%clk 0:00:02]}  Kxf6 {[%clk 0:00:06]} 49. Rb7 {[%clk 0:00:02]}  Kg6 {[%clk 0:00:05]} 50. Kh3 {[%clk 0:00:02]}  f5 {[%clk 0:00:05]} 51. g3 {[%clk 0:00:02]}  Nf2+ {[%clk 0:00:06]} 52. Kg2 {[%clk 0:00:02]}  Ng4 {[%clk 0:00:07]} 53. Kf3 {[%clk 0:00:03]}  Kf6 {[%clk 0:00:07]} 54. Kf4 {[%clk 0:00:04]}  Re4+ {[%clk 0:00:07]} 55. Kf3 {[%clk 0:00:05]}  Re3+ {[%clk 0:00:08]} 56. Kf4 {[%clk 0:00:05]}  Re6 {[%clk 0:00:09]} 57. Rb8 {[%clk 0:00:05]}  Re4+ {[%clk 0:00:06]} 58. Kf3 {[%clk 0:00:05]}  Ne5+ {[%clk 0:00:07]} 59. Kf2 {[%clk 0:00:05]}  Nd3+ {[%clk 0:00:08]} 60. Kf3 {[%clk 0:00:05]}  Re6 {[%clk 0:00:08]} 61. h5 {[%clk 0:00:05]}  Kg5 {[%clk 0:00:09]} 62. Rd8 {[%clk 0:00:03]}  Ne5+ {[%clk 0:00:09]} 63. Kf2 {[%clk 0:00:03]}  Kxh5 {[%clk 0:00:09]} 64. Rd4 {[%clk 0:00:02]}  Kg5 {[%clk 0:00:10]} 65. Ra4 {[%clk 0:00:03]}  Nd3+ {[%clk 0:00:10]} 66. Kf3 {[%clk 0:00:03]}  Nxb2 {[%clk 0:00:11]} 67. Ra5 {[%clk 0:00:03]}  Nd3 {[%clk 0:00:11]} 68. c4 {[%clk 0:00:02]}  Ne5+ {[%clk 0:00:11]} 69. Kg2 {[%clk 0:00:02]}  Nxc4 {[%clk 0:00:12]} 70. Rc5 {[%clk 0:00:02]}  Ne3+ {[%clk 0:00:12]} 71. Kh3 {[%clk 0:00:03]}  Rh6# {[%clk 0:00:12]} 0-1

[Event "December 5 Early 2023"]
[Site "https://www.chess.com"]
[Date "2023.12.05"]
[Round "4"]
[White "Williams, Simon K"]
[Black "Kamsky, Gata"]
[Result "1/2-1/2"]
[Board "30"]
[TimeControl "180+1"]
[WhiteFideId "404454"]
[BlackFideId "2000024"]
[WhiteElo "2704"]
[BlackElo "2937"]
[WhiteTeam "ENG"]
[BlackTeam "USA"]
[WhiteClock "0:00:39"]
[BlackClock "0:00:47"]

1. d4 {[%clk 0:02:40]}  d5 {[%clk 0:02:51]} 2. c4 {[%clk 0:02:39]}  c6 {[%clk 0:02:51]} 3. cxd5 {[%clk 0:02:38]}  cxd5 {[%clk 0:02:51]} 4. Nc3 {[%clk 0:02:39]}  Nf6 {[%clk 0:02:50]} 5. f3 {[%clk 0:02:39]}  Nc6 {[%clk 0:02:47]} 6. e4 {[%clk 0:02:39]}  dxe4 {[%clk 0:02:41]} 7. d5 {[%clk 0:02:39]}  Ne5 {[%clk 0:02:39]} 8. fxe4 {[%clk 0:02:39]}  e6 {[%clk 0:02:37]} 9. Nf3 {[%clk 0:02:36]}  Nxf3+ {[%clk 0:02:23]} 10. Qxf3 {[%clk 0:02:36]}  Bd6 {[%clk 0:02:19]} 11. Bb5+ {[%clk 0:02:11]}  Bd7 {[%clk 0:02:17]} 12. Bxd7+ {[%clk 0:02:11]}  Qxd7 {[%clk 0:02:16]} 13. O-O {[%clk 0:02:10]}  O-O {[%clk 0:02:12]} 14. Bg5 {[%clk 0:01:45]}  Be5 {[%clk 0:02:11]} 15. Rad1 {[%clk 0:01:45]}  h6 {[%clk 0:02:04]} 16. Bf4 {[%clk 0:01:44]}  Qd6 {[%clk 0:01:57]} 17. Bxe5 {[%clk 0:01:44]}  Qxe5 {[%clk 0:01:57]} 18. Qf4 {[%clk 0:01:40]}  Qxf4 {[%clk 0:01:57]} 19. Rxf4 {[%clk 0:01:39]}  Rad8 {[%clk 0:01:44]} 20. Rff1 {[%clk 0:01:34]}  exd5 {[%clk 0:01:37]} 21. exd5 {[%clk 0:01:29]}  Ne8 {[%clk 0:01:30]} 22. Rfe1 {[%clk 0:01:06]}  Nd6 {[%clk 0:01:27]} 23. Re7 {[%clk 0:01:06]}  Rfe8 {[%clk 0:01:27]} 24. Rde1 {[%clk 0:01:05]}  Kf8 {[%clk 0:01:26]} 25. Rxe8+ {[%clk 0:01:05]}  Rxe8 {[%clk 0:01:26]} 26. Rxe8+ {[%clk 0:01:05]}  Kxe8 {[%clk 0:01:26]} 27. Kf2 {[%clk 0:01:06]}  Kd7 {[%clk 0:01:16]} 28. b3 {[%clk 0:01:04]}  a6 {[%clk 0:01:06]} 29. Ke3 {[%clk 0:01:04]}  b6 {[%clk 0:00:54]} 30. g4 {[%clk 0:01:00]}  f5 {[%clk 0:00:52]} 31. gxf5 {[%clk 0:00:54]}  Nxf5+ {[%clk 0:00:51]} 32. Ke4 {[%clk 0:00:54]}  Nd6+ {[%clk 0:00:49]} 33. Ke5 {[%clk 0:00:54]}  Ke7 {[%clk 0:00:48]} 34. h4 {[%clk 0:00:47]}  g6 {[%clk 0:00:47]} 35. a4 {[%clk 0:00:45]}  Nf7+ {[%clk 0:00:46]} 36. Kd4 {[%clk 0:00:41]}  Nd6 {[%clk 0:00:47]} 37. Ke5 {[%clk 0:00:40]}  Nf7+ {[%clk 0:00:47]} 38. Kd4 {[%clk 0:00:39]}  Nd6 {[%clk 0:00:47]} 39. Ke5 {[%clk 0:00:39]} 1/2-1/2

[Event "December 5 Early 2023"]
[Site "https://www.chess.com"]
[Date "2023.12.05"]
[Round "4"]
[White "Poormosavi, Seyed Kian"]
[Black "Nguyen, Ngoc Truong Son"]
[Result "0-1"]
[Board "31"]
[TimeControl "180+1"]
[WhiteFideId "12585807"]
[BlackFideId "12401110"]
[WhiteElo "2693"]
[BlackElo "2933"]
[WhiteTeam "IRI"]
[BlackTeam "VIE"]
[WhiteClock "0:00:03"]
[BlackClock "0:01:20"]

1. Nf3 {[%clk 0:02:56]}  c6 {[%clk 0:02:59]} 2. g3 {[%clk 0:02:56]}  d5 {[%clk 0:03:00]} 3. Bg2 {[%clk 0:02:57]}  g6 {[%clk 0:03:00]} 4. O-O {[%clk 0:02:57]}  Bg7 {[%clk 0:03:01]} 5. d4 {[%clk 0:02:58]}  Nf6 {[%clk 0:03:02]} 6. c3 {[%clk 0:02:59]}  O-O {[%clk 0:03:03]} 7. a4 {[%clk 0:02:59]}  Bf5 {[%clk 0:03:03]} 8. Nbd2 {[%clk 0:02:58]}  a5 {[%clk 0:03:02]} 9. Re1 {[%clk 0:02:56]}  Nbd7 {[%clk 0:03:00]} 10. Nh4 {[%clk 0:02:56]}  Be6 {[%clk 0:03:00]} 11. e4 {[%clk 0:02:57]}  dxe4 {[%clk 0:03:00]} 12. Nxe4 {[%clk 0:02:57]}  Nxe4 {[%clk 0:03:01]} 13. Bxe4 {[%clk 0:02:57]}  Bd5 {[%clk 0:03:01]} 14. Bxd5 {[%clk 0:02:52]}  cxd5 {[%clk 0:03:02]} 15. Qb3 {[%clk 0:02:52]}  Nb6 {[%clk 0:03:01]} 16. Nf3 {[%clk 0:02:39]}  e6 {[%clk 0:02:59]} 17. Bf4 {[%clk 0:02:35]}  Re8 {[%clk 0:02:54]} 18. h4 {[%clk 0:02:34]}  h6 {[%clk 0:02:52]} 19. Kg2 {[%clk 0:02:30]}  Re7 {[%clk 0:02:40]} 20. Re2 {[%clk 0:02:25]}  Nc4 {[%clk 0:02:39]} 21. Ne5 {[%clk 0:02:18]}  Bxe5 {[%clk 0:02:29]} 22. Bxe5 {[%clk 0:02:19]}  Rd7 {[%clk 0:02:26]} 23. Bf4 {[%clk 0:02:17]}  Kg7 {[%clk 0:02:23]} 24. Qb5 {[%clk 0:02:16]}  Ra6 {[%clk 0:02:18]} 25. Qb3 {[%clk 0:01:42]}  Rb6 {[%clk 0:02:16]} 26. Qa2 {[%clk 0:01:43]}  g5 {[%clk 0:02:16]} 27. hxg5 {[%clk 0:01:40]}  hxg5 {[%clk 0:02:17]} 28. Bc1 {[%clk 0:01:40]}  Rc6 {[%clk 0:02:16]} 29. b3 {[%clk 0:01:11]}  Nd6 {[%clk 0:02:16]} 30. Bd2 {[%clk 0:01:12]}  Ne4 {[%clk 0:02:14]} 31. Rc1 {[%clk 0:01:10]}  g4 {[%clk 0:02:04]} 32. Be1 {[%clk 0:01:06]}  Qf6 {[%clk 0:02:03]} 33. Re3 {[%clk 0:01:03]}  Qh6 {[%clk 0:02:00]} 34. Qe2 {[%clk 0:01:02]}  f5 {[%clk 0:01:57]} 35. Qf1 {[%clk 0:00:29]}  e5 {[%clk 0:01:36]} 36. Rd1 {[%clk 0:00:16]}  Kg8 {[%clk 0:01:31]} 37. Qh1 {[%clk 0:00:11]}  Qxh1+ {[%clk 0:01:28]} 38. Kxh1 {[%clk 0:00:11]}  Rh7+ {[%clk 0:01:24]} 39. Kg2 {[%clk 0:00:11]}  f4 {[%clk 0:01:20]} 40. Rxe4 {[%clk 0:00:03]}  f3+ {[%clk 0:01:19]} 41. Kg1 {[%clk 0:00:03]}  dxe4 {[%clk 0:01:20]} 42. dxe5 {[%clk 0:00:03]}  Rch6 {[%clk 0:01:19]} 43. Rd8+ {[%clk 0:00:04]}  Kf7 {[%clk 0:01:19]} 44. Rd7+ {[%clk 0:00:04]}  Ke6 {[%clk 0:01:20]} 45. Rxh7 {[%clk 0:00:05]}  Rxh7 {[%clk 0:01:21]} 46. c4 {[%clk 0:00:03]}  Rd7 {[%clk 0:01:20]} 0-1